fUST/lending_fUST_20250326
["ID","MTS","AMOUNT","RATE_DAILY","PERIOD"]
[356653797,1742918569456,300.19,0.0001202,2]
[356653798,1742918793129,500.0,0.0001122,2]
[356653800,1742919015184,24900.0,0.00011199,2]
[356653867,1742919032888,-300.0,0.00012195,2]
[356653869,1742919032898,-500.0,0.00012195,2]
[356653871,1742919032908,-500.0,0.00012195,2]
[356653873,1742919032920,-601.21252619,0.00012195,2]
[356653875,1742919032930,-586.96062135,0.00012195,2]
[356653877,1742919032939,-500.0,0.00012195,2]
[356653880,1742919032949,-500.0,0.00012195,2]
[356653882,1742919032959,-500.0,0.00012195,2]
[356653884,1742919032968,-500.0,0.00012195,2]
[356653886,1742919032980,-3506.70262657,0.00012196,2]
[356653888,1742919032990,-77.52957847,0.00012196,2]
[356653894,1742919033041,-500.0,0.00012195,2]
[356653896,1742919033052,-500.0,0.00012195,2]
[356653898,1742919033062,-422.47042153,0.00012196,2]
[356653899,1742919033072,-328.44475177,0.00012196,2]
[356653901,1742919033083,-1119.71704181,0.00012196,2]
[356654347,1742919038395,-500.0,0.00012195,2]
[356654348,1742919038404,-320.68640775,0.00012195,2]
[356654431,1742919043918,-179.31359225,0.00012195,2]
[356654433,1742919043928,-500.0,0.00012195,2]
[356654435,1742919043937,-177.45827876,0.00012195,2]
[356654437,1742919043946,-500.0,0.00012195,2]
[356654439,1742919043975,-500.0,0.00012195,2]
[356654441,1742919043985,-160.75307189,0.00012195,2]
[356654539,1742919046399,-339.24692811,0.00012195,2]
[356654540,1742919046409,-500.0,0.00012195,2]
[356654542,1742919046418,-500.0,0.00012195,2]
[356654545,1742919046429,-500.0,0.00012195,2]
[356654547,1742919046438,-500.0,0.00012195,2]
[356654548,1742919046448,-500.0,0.00012195,2]
[356654551,1742919046458,-500.0,0.00012195,2]
[356654553,1742919046467,-500.0,0.00012195,2]
[356654555,1742919046477,-500.0,0.00012195,2]
[356654557,1742919046486,-500.0,0.00012195,2]
[356654559,1742919046495,-500.0,0.00012195,2]
[356654561,1742919046504,-500.0,0.00012195,2]
[356654563,1742919046514,-545.59519834,0.00012195,2]
[356654565,1742919046523,-500.0,0.00012195,2]
[356654567,1742919046533,-186.13177907,0.00012195,2]
[356654569,1742919046542,-2553.79501929,0.00012196,2]
[356654571,1742919046558,-6492.6079389,0.00012196,2]
[356654572,1742919046568,-938.68,0.00012196,2]
[356654577,1742919046578,-3197.83,0.00012196,2]
[356654578,1742919046587,-8790.66,0.00012196,2]
[356654582,1742919046598,-991.7,0.00012196,2]
[356654584,1742919046607,-500.0,0.00012196,2]
[356654587,1742919046617,-1213.1,0.00012196,2]
[356654590,1742919046626,-668.30383301,0.00012196,2]
[356654597,1742919046652,-844.86616699,0.00012196,2]
[356654599,1742919046662,-500.0,0.00012196,2]
[356654601,1742919046672,-500.0,0.00012196,2]
[356654602,1742919046683,-186.733833,0.00012196,2]
[356654603,1742919046694,-313.266167,0.00012196,2]
[356654604,1742919046704,-500.0,0.00012196,2]
[356654605,1742919046715,-4523.02618124,0.00012196,2]
[356654606,1742919052564,-150.0,0.000121,2]
[356654610,1742919353066,178.393004,0.00010959,2]
[356654612,1742919535215,5000.0,0.00011997,2]
[356654616,1742919792106,183.8430431,0.00011117,2]
[356654618,1742919916478,652.3511917,0.00011098,2]
[356654630,1742920163021,24900.0,0.00011097,2]
[356654643,1742920232626,-301.0,0.00012091,2]
[356654644,1742920232636,-600.0,0.00012091,2]
[356654645,1742920232646,-300.0,0.00012093,2]
[356654646,1742920232656,-186.3842532,0.00012094,2]
[356654647,1742920232666,-500.0,0.00012094,2]
[356654648,1742920232675,-500.0,0.00012094,2]
[356654649,1742920232684,-338.39946648,0.00012094,2]
[356654650,1742920232693,-500.0,0.00012094,2]
[356654651,1742920232703,-10371.13,0.00012094,2]
[356654652,1742920232712,-957.61,0.00012094,2]
[356654653,1742920232721,-3262.32,0.00012094,2]
[356654654,1742920232731,-8955.44,0.00012094,2]
[356654655,1742920232741,-1011.7,0.00012094,2]
[356654656,1742920232750,-500.0,0.00012094,2]
[356654657,1742920232759,-500.0,0.00012094,2]
[356654659,1742920232768,-1162.56,0.00012094,2]
[356654661,1742920232778,-500.0,0.00012094,2]
[356654663,1742920232787,-509.42,0.00012094,2]
[356654665,1742920232796,-1450.12,0.00012095,2]
[356654667,1742920232805,-500.0,0.00012095,2]
[356654669,1742920232815,-500.0,0.00012095,2]
[356654671,1742920232824,-5418.2,0.00012095,2]
[356654673,1742920232834,-500.0,0.00012095,2]
[356654675,1742920232843,-500.0,0.00012095,2]
[356654677,1742920232852,-1033.32,0.00012095,2]
[356654678,1742920232861,-1584.09,0.00012095,2]
[356654679,1742920232871,-4813.43,0.00012095,2]
[356654680,1742920232880,-3300.36,0.00012095,2]
[356654681,1742920232889,-1337.44,0.00012095,2]
[356654682,1742920232898,-500.0,0.00012095,2]
[356654683,1742920232907,-127.17099758,0.00012095,2]
[356654684,1742920233274,-415.30900242,0.00012095,2]
[356654685,1742920233284,-500.0,0.00012095,2]
[356654686,1742920233295,-1618.42,0.00012095,2]
[356654687,1742920233305,-500.0,0.00012095,2]
[356654688,1742920233315,-500.0,0.00012095,2]
[356654689,1742920233325,-797.7,0.00012095,2]
[356654690,1742920233335,-500.0,0.00012095,2]
[356654691,1742920233345,-1220.34,0.00012095,2]
[356654692,1742920233356,-1168.27,0.00012095,2]
[356654693,1742920233366,-8831.5,0.00012095,2]
[356654694,1742920233377,-502.7,0.00012095,2]
[356654695,1742920233388,-500.0,0.00012095,2]
[356654696,1742920233398,-383.97632425,0.00012095,2]
[356654697,1742920233408,-500.0,0.00012095,2]
[356654698,1742920233418,-500.0,0.00012095,2]
[356654699,1742920233428,-2856.42,0.00012095,2]
[356654700,1742920233438,-2858.93,0.00012095,2]
[356654701,1742920233447,-2565.83,0.00012095,2]
[356654702,1742920233458,-683.23,0.00012095,2]
[356654703,1742920233468,-1302.21,0.00012095,2]
[356654704,1742920233478,-2576.98,0.00012095,2]
[356654705,1742920233488,-220.28128066,0.00012096,2]
[356654706,1742920233498,-500.0,0.00012096,2]
[356654707,1742920233508,-499.97,0.00012096,2]
[356654708,1742920233517,-500.0,0.00012096,2]
[356654709,1742920233527,-500.0,0.00012096,2]
[356654710,1742920233537,-500.0,0.00012096,2]
[356654711,1742920233547,-500.0,0.00012096,2]
[356654712,1742920233557,-500.0,0.00012096,2]
[356654713,1742920233567,-698.68,0.00012096,2]
[356654714,1742920233576,-500.0,0.00012096,2]
[356654715,1742920233585,-500.0,0.00012096,2]
[356654716,1742920233595,-500.0,0.00012096,2]
[356654717,1742920233605,-502.85,0.00012096,2]
[356654718,1742920233615,-500.0,0.00012096,2]
[356654719,1742920233624,-500.0,0.00012096,2]
[356654720,1742920233634,-501.27,0.00012096,2]
[356654721,1742920233643,-35.33419325,0.00012096,2]
[356654744,1742920240847,-500.0,0.00012094,2]
[356654745,1742920240858,-229.91132624,0.00012094,2]
[356654746,1742920240868,-544.32,0.00012095,2]
[356654747,1742920240878,-464.66580675,0.00012096,2]
[356654748,1742920240888,-330.702867,0.00012096,2]
[356654760,1742920243689,-494.18,0.00012094,2]
[356654773,1742920246712,-5.82,0.00012094,2]
[356654774,1742920246722,-366.39519123,0.00012094,2]
[356654783,1742920466424,176.859247,0.00010959,2]
[356654786,1742920554879,322000.0,0.00011995,2]
[356654787,1742920689814,322000.0,0.00011994,2]
[356654789,1742920823875,106781.86877364,0.00011994,2]
[356654790,1742920823905,215218.13122636,0.00011994,2]
[356654791,1742920936689,322000.0,0.00011994,2]
[356654792,1742921076998,322000.0,0.00011993,2]
[356654796,1742921175773,13659.3879029,0.00011094,2]
[356654797,1742921211851,193225.2490227,0.00011992,2]
[356654983,1742921437672,-300.0,0.00012088,2]
[356654984,1742921437682,-500.0,0.00012088,2]
[356654985,1742921437691,-219.60690074,0.00012088,2]
[356654986,1742921437701,-500.0,0.00012089,2]
[356654987,1742921437710,-9359.21553983,0.00012089,2]
[356654988,1742921437722,-464.08112466,0.00012089,2]
[356655081,1742921440035,-333.7429087,0.00012088,2]
[356655083,1742921440046,-115.70333551,0.00012089,2]
[356655085,1742921440055,-917.71,0.00012089,2]
[356655087,1742921440064,-1929.14679318,0.00012089,2]
[356655090,1742921440075,-1197.24320682,0.00012089,2]
[356655092,1742921440084,-820.15679318,0.00012089,2]
[356655136,1742921442879,-149.39320682,0.00012089,2]
[356655137,1742921442895,-2440.77300803,0.00012089,2]
[356655138,1742921442983,-401.32949645,0.00012089,2]
[356655175,1742921445810,-526.8965355,0.00012089,2]
[356655181,1742921445864,-5213.30096002,0.00012089,2]
[356655183,1742921445874,-500.0,0.00012089,2]
[356655185,1742921445884,-500.0,0.00012089,2]
[356655187,1742921445894,-500.0,0.00012089,2]
[356655189,1742921445903,-1175.21,0.00012089,2]
[356655191,1742921445912,-455.48903999,0.00012089,2]
[356655233,1742921470654,256198.42478204,0.00011991,2]
[356655234,1742921482993,5000.0,0.0001199,2]
[356655235,1742921706246,10000.0,0.00011093,2]
[356655236,1742921896337,31407.9685408,0.00012,2]
[356655237,1742921994439,176.859247,0.00010959,2]
[356655238,1742922012655,465.00410614,0.00011636,2]
[356655239,1742922042238,-152.67,0.0001201,2]
[356655240,1742922070648,-188.5442356,0.0001201,2]
[356655242,1742922203064,1203.69032338,0.0001199,2]
[356655245,1742922614738,-286.0993,0.0001201,2]
[356655272,1742922632002,-1579.59841539,0.0001201,2]
[356655273,1742922632012,-151.0,0.0001201,2]
[356655274,1742922632021,-600.0,0.0001201,2]
[356655275,1742922632031,-331.219,0.0001203,2]
[356655276,1742922632041,-300.0,0.00012083,2]
[356655277,1742922632051,-500.0,0.00012084,2]
[356655278,1742922632060,-375.43832764,0.00012084,2]
[356655279,1742922632070,-197.90885493,0.00012084,2]
[356655280,1742922632079,-500.0,0.00012084,2]
[356655281,1742922632088,-9524.88,0.00012084,2]
[356655282,1742922632098,-879.47,0.00012084,2]
[356655283,1742922632107,-2996.13,0.00012084,2]
[356655284,1742922632116,-8224.7,0.00012084,2]
[356655285,1742922632125,-929.15,0.00012084,2]
[356655286,1742922632135,-500.0,0.00012084,2]
[356655287,1742922632144,-500.0,0.00012084,2]
[356655288,1742922632154,-1126.24,0.00012084,2]
[356655289,1742922632164,-500.0,0.00012084,2]
[356655290,1742922632174,-500.0,0.00012084,2]
[356655291,1742922632183,-1460.39,0.00012085,2]
[356655292,1742922632192,-500.0,0.00012085,2]
[356655293,1742922632202,-2306.17859313,0.00012085,2]
[356655294,1742922632225,-2886.26140687,0.00012085,2]
[356655295,1742922632235,-500.0,0.00012085,2]
[356655296,1742922632244,-500.0,0.00012085,2]
[356655297,1742922632254,-990.27,0.00012085,2]
[356655298,1742922632264,-1518.09,0.00012085,2]
[356655299,1742922632274,-3194.99,0.00012085,2]
[356655300,1742922632284,-4665.63,0.00012085,2]
[356655301,1742922632294,-519.87,0.00012085,2]
[356655302,1742922632305,-1291.81,0.00012085,2]
[356655303,1742922632314,-500.0,0.00012085,2]
[356655304,1742922632323,-1550.99,0.00012085,2]
[356655305,1742922632333,-500.0,0.00012085,2]
[356655306,1742922632342,-500.0,0.00012085,2]
[356655307,1742922632352,-877.12,0.00012085,2]
[356655308,1742922632364,-764.46,0.00012085,2]
[356655309,1742922632373,-500.0,0.00012085,2]
[356655310,1742922632383,-1119.59,0.00012085,2]
[356655311,1742922632393,-500.0,0.00012085,2]
[356655312,1742922632403,-9266.39,0.00012085,2]
[356655313,1742922632413,-500.0,0.00012085,2]
[356655314,1742922632423,-151.0,0.00012085,2]
[356655315,1742922632433,-216.433602,0.00012085,2]
[356655316,1742922632443,-500.0,0.00012085,2]
[356655317,1742922632453,-172.735793,0.00012085,2]
[356655318,1742922632463,-2737.4,0.00012085,2]
[356655319,1742922632472,-2739.8,0.00012085,2]
[356655320,1742922632482,-2458.92,0.00012085,2]
[356655321,1742922632492,-654.76,0.00012085,2]
[356655322,1742922632501,-1247.95,0.00012085,2]
[356655323,1742922632511,-2006.55,0.00012085,2]
[356655324,1742922632521,-500.0,0.00012086,2]
[356655325,1742922632531,-509.02,0.00012086,2]
[356655326,1742922632540,-500.0,0.00012086,2]
[356655327,1742922632550,-500.0,0.00012086,2]
[356655328,1742922632560,-500.0,0.00012086,2]
[356655329,1742922632570,-500.0,0.00012086,2]
[356655330,1742922632580,-500.0,0.00012086,2]
[356655331,1742922632589,-500.0,0.00012086,2]
[356655332,1742922632599,-500.0,0.00012086,2]
[356655333,1742922632609,-500.0,0.00012086,2]
[356655334,1742922632619,-177.50121898,0.00012086,2]
[356655335,1742922632629,-669.57,0.00012086,2]
[356655336,1742922632638,-500.0,0.00012086,2]
[356655337,1742922632649,-500.0,0.00012086,2]
[356655338,1742922632658,-500.0,0.00012086,2]
[356655339,1742922632668,-500.0,0.00012086,2]
[356655340,1742922632677,-636.86,0.00012086,2]
[356655341,1742922632688,-500.0,0.00012086,2]
[356655342,1742922632702,-500.0,0.00012086,2]
[356655343,1742922632712,-500.0,0.00012086,2]
[356655344,1742922632721,-515.18,0.00012086,2]
[356655345,1742922632732,-500.0,0.00012086,2]
[356655346,1742922632741,-500.0,0.00012086,2]
[356655347,1742922632751,-500.0,0.00012086,2]
[356655348,1742922632761,-500.0,0.00012086,2]
[356655349,1742922632771,-253.83,0.00012086,2]
[356655350,1742922632782,-179.52679964,0.00012086,2]
[356655351,1742922632792,-713.58,0.00012086,2]
[356655352,1742922632803,-500.0,0.00012086,2]
[356655353,1742922632813,-644.78,0.00012086,2]
[356655354,1742922632822,-500.0,0.00012086,2]
[356655355,1742922632832,-500.0,0.00012086,2]
[356655356,1742922632842,-500.0,0.00012086,2]
[356655357,1742922632851,-500.0,0.00012086,2]
[356655358,1742922632862,-500.0,0.00012086,2]
[356655359,1742922632872,-500.0,0.00012086,2]
[356655360,1742922632881,-999.0,0.00012086,2]
[356655361,1742922632891,-616.72,0.00012086,2]
[356655362,1742922632902,-576.32,0.00012086,2]
[356655363,1742922632911,-500.0,0.00012086,2]
[356655364,1742922632921,-500.0,0.00012086,2]
[356655365,1742922632930,-616.02,0.00012086,2]
[356655366,1742922632940,-500.0,0.00012086,2]
[356655367,1742922632949,-500.0,0.00012086,2]
[356655368,1742922632959,-573.4,0.00012086,2]
[356655369,1742922632969,-500.0,0.00012086,2]
[356655370,1742922632979,-500.0,0.00012086,2]
[356655371,1742922632989,-500.0,0.00012086,2]
[356655372,1742922632999,-500.0,0.00012086,2]
[356655373,1742922633009,-500.0,0.00012086,2]
[356655374,1742922633019,-165.3,0.00012086,2]
[356655375,1742922633029,-500.0,0.00012086,2]
[356655376,1742922633040,-500.0,0.00012086,2]
[356655377,1742922633051,-598.35,0.00012086,2]
[356655378,1742922633061,-500.0,0.00012086,2]
[356655379,1742922633071,-500.0,0.00012086,2]
[356655380,1742922633081,-500.0,0.00012086,2]
[356655381,1742922633090,-500.0,0.00012086,2]
[356655382,1742922633100,-527.57,0.00012086,2]
[356655383,1742922633110,-500.0,0.00012086,2]
[356655384,1742922633119,-500.0,0.00012086,2]
[356655385,1742922633129,-500.0,0.00012086,2]
[356655386,1742922633139,-500.0,0.00012086,2]
[356655387,1742922633149,-500.0,0.00012086,2]
[356655388,1742922633159,-500.0,0.00012086,2]
[356655389,1742922633168,-527.02696015,0.00012086,2]
[356655390,1742922633179,-500.0,0.00012086,2]
[356655391,1742922633188,-500.0,0.00012086,2]
[356655392,1742922633197,-500.0,0.00012086,2]
[356655393,1742922633207,-500.0,0.00012086,2]
[356655394,1742922633217,-646.03560828,0.00012086,2]
[356655395,1742922633226,-500.0,0.00012086,2]
[356655396,1742922633238,-511.9707748,0.00012086,2]
[356655397,1742922633248,-617.94,0.00012086,2]
[356655398,1742922633258,-513.61248774,0.00012086,2]
[356655399,1742922633268,-459.79503323,0.00012086,2]
[356655400,1742922633278,-546.51,0.00012086,2]
[356655401,1742922633287,-500.0,0.00012086,2]
[356655402,1742922633297,-500.0,0.00012086,2]
[356655403,1742922633307,-791.01,0.00012086,2]
[356655404,1742922633317,-500.0,0.00012086,2]
[356655405,1742922633326,-500.0,0.00012086,2]
[356655406,1742922633335,-532.73977394,0.00012086,2]
[356655407,1742922633345,-500.0,0.00012086,2]
[356655408,1742922633354,-500.0,0.00012086,2]
[356655409,1742922633364,-500.0,0.00012086,2]
[356655410,1742922633373,-500.0,0.00012086,2]
[356655411,1742922633382,-500.0,0.00012086,2]
[356655412,1742922633392,-521.64,0.00012086,2]
[356655413,1742922633402,-500.0,0.00012086,2]
[356655414,1742922633411,-500.0,0.00012086,2]
[356655415,1742922633420,-500.0,0.00012086,2]
[356655416,1742922633430,-500.0,0.00012086,2]
[356655417,1742922633440,-500.0,0.00012086,2]
[356655418,1742922633450,-500.0,0.00012086,2]
[356655419,1742922633459,-500.0,0.00012086,2]
[356655420,1742922633469,-500.0,0.00012086,2]
[356655421,1742922633479,-500.0,0.00012086,2]
[356655422,1742922633489,-500.0,0.00012086,2]
[356655423,1742922633499,-500.0,0.00012086,2]
[356655424,1742922633509,-1035.51,0.00012086,2]
[356655425,1742922633519,-1054.86,0.00012086,2]
[356655426,1742922633529,-258.09,0.00012086,2]
[356655427,1742922633539,-500.0,0.00012086,2]
[356655428,1742922633549,-365.56,0.00012086,2]
[356655429,1742922633559,-500.0,0.00012086,2]
[356655430,1742922633569,-500.0,0.00012086,2]
[356655431,1742922633578,-500.0,0.00012086,2]
[356655432,1742922633588,-500.0,0.00012086,2]
[356655433,1742922633598,-500.0,0.00012086,2]
[356655434,1742922633608,-1775.07,0.00012086,2]
[356655435,1742922633617,-500.0,0.00012086,2]
[356655436,1742922633627,-500.0,0.00012086,2]
[356655437,1742922633637,-500.0,0.00012086,2]
[356655438,1742922633647,-500.0,0.00012086,2]
[356655439,1742922633657,-500.0,0.00012086,2]
[356655440,1742922633667,-1599.01,0.00012086,2]
[356655441,1742922633678,-648.34,0.00012086,2]
[356655442,1742922633688,-336.36734237,0.00012086,2]
[356655443,1742922633700,-500.0,0.00012086,2]
[356655444,1742922633710,-1107.2,0.00012086,2]
[356655445,1742922633720,-500.0,0.00012086,2]
[356655446,1742922633730,-544.05080322,0.00012086,2]
[356655447,1742922633740,-500.0,0.00012086,2]
[356655448,1742922633750,-500.0,0.00012086,2]
[356655449,1742922633760,-500.0,0.00012086,2]
[356655450,1742922633771,-1848.77,0.00012086,2]
[356655451,1742922633782,-500.0,0.00012086,2]
[356655452,1742922633793,-500.0,0.00012086,2]
[356655453,1742922633805,-500.0,0.00012086,2]
[356655454,1742922633815,-7816.59,0.00012086,2]
[356655455,1742922633826,-500.0,0.00012086,2]
[356655456,1742922633836,-500.0,0.00012086,2]
[356655457,1742922633846,-500.0,0.00012086,2]
[356655458,1742922633856,-500.0,0.00012086,2]
[356655459,1742922633866,-3326.51,0.00012086,2]
[356655460,1742922633875,-500.0,0.00012086,2]
[356655461,1742922633885,-226.58719643,0.00012086,2]
[356655462,1742922633895,-595.84,0.00012086,2]
[356655463,1742922633905,-500.0,0.00012086,2]
[356655464,1742922633915,-500.0,0.00012086,2]
[356655465,1742922633925,-2140.28,0.00012086,2]
[356655466,1742922633935,-500.0,0.00012086,2]
[356655467,1742922633945,-500.0,0.00012086,2]
[356655468,1742922633955,-500.0,0.00012086,2]
[356655469,1742922634106,-500.0,0.00012086,2]
[356655470,1742922634116,-500.0,0.00012086,2]
[356655471,1742922634126,-500.0,0.00012086,2]
[356655472,1742922634135,-500.0,0.00012086,2]
[356655473,1742922634145,-500.0,0.00012086,2]
[356655474,1742922634155,-500.0,0.00012086,2]
[356655475,1742922634164,-500.0,0.00012086,2]
[356655476,1742922634174,-500.0,0.00012086,2]
[356655477,1742922634184,-171.848296,0.00012086,2]
[356655478,1742922634199,-328.151704,0.00012086,2]
[356655479,1742922634209,-594.72829599,0.00012086,2]
[356655489,1742922637790,-500.0,0.00012084,2]
[356655490,1742922637799,-500.0,0.00012084,2]
[356655492,1742922637810,-543.62730224,0.00012084,2]
[356655493,1742922637819,-500.0,0.00012085,2]
[356655494,1742922637829,-225.43170401,0.00012086,2]
[356655495,1742922637839,-500.0,0.00012086,2]
[356655496,1742922637848,-636.99,0.00012086,2]
[356655497,1742922637858,-500.0,0.00012086,2]
[356655498,1742922637870,-500.0,0.00012086,2]
[356655499,1742922637880,-523.24,0.00012086,2]
[356655500,1742922637890,-500.0,0.00012086,2]
[356655501,1742922637900,-528.44960207,0.00012086,2]
[356655502,1742922637910,-51.44654168,0.00012086,2]
[356655503,1742922637922,-448.55345832,0.00012086,2]
[356655504,1742922637932,-796.94277115,0.00012086,2]
[356655515,1742922640407,-0.01389075,0.00012084,2]
[356655517,1742922641116,-175.05761501,0.00012084,2]
[356655531,1742922643078,-324.92849424,0.00012084,2]
[356655532,1742922643088,-517.8953023,0.00012084,2]
[356655533,1742922643098,-500.0,0.00012084,2]
[356655534,1742922643107,-500.0,0.00012084,2]
[356655535,1742922643116,-500.0,0.00012085,2]
[356655536,1742922643125,-35.66722885,0.00012086,2]
[356655537,1742922643135,-2915.4,0.00012086,2]
[356655538,1742922643144,-500.0,0.00012086,2]
[356655539,1742922643153,-497.06532945,0.00012086,2]
[356655540,1742922643162,-500.0,0.00012086,2]
[356655541,1742922643173,-6571.27,0.00012086,2]
[356655542,1742922643182,-500.0,0.00012086,2]
[356655543,1742922643191,-500.0,0.00012086,2]
[356655544,1742922643201,-500.0,0.00012086,2]
[356655545,1742922643209,-500.0,0.00012086,2]
[356655547,1742922643219,-500.0,0.00012086,2]
[356655549,1742922643228,-322.34357725,0.00012086,2]
[356655551,1742922643237,-500.0,0.00012086,2]
[356655552,1742922643247,-838.01,0.00012086,2]
[356655553,1742922643256,-158.95102283,0.00012086,2]
[356655554,1742922643268,-341.04897717,0.00012086,2]
[356655555,1742922643277,-500.0,0.00012086,2]
[356655556,1742922643286,-461.25646493,0.00012086,2]
[356655557,1742922643299,-37478.75648449,0.00012086,2]
[356655558,1742922643311,-4338.4439522,0.00012086,2]
[356655559,1742922643322,-4524.9999995,0.00012086,2]
[356655560,1742922644116,-151.0,0.00012084,2]
[356655562,1742922646009,-1248.54,0.00012084,2]
[356655563,1742922646019,-7130.76,0.00012086,2]
[356655564,1742922656001,192738.58408622,0.00011986,2]
[356655565,1742922699465,1000.0,0.00011985,2]
[356655566,1742922905194,1203.69032338,0.0001199,2]
[356655567,1742923001698,150.72,0.0001199,2]
[356655568,1742923057778,175.325489,0.00010959,2]
[356655569,1742923295205,617.72,0.00012,2]
[356655570,1742923348088,1975.34,0.00012,2]
[356655571,1742923379103,1975.0,0.00012,2]
[356655581,1742923592099,-300.0,0.00012079,2]
[356655582,1742923592122,-500.0,0.0001208,2]
[356655583,1742923592144,-9128.01,0.0001208,2]
[356655584,1742923592166,-2871.29,0.0001208,2]
[356655585,1742923592188,-374.923166,0.0001208,2]
[356655587,1742923635105,-300.0,0.00012079,2]
[356655588,1742923635131,-467.906834,0.0001208,2]
[356655589,1742923635154,-890.44,0.0001208,2]
[356655590,1742923635176,-500.0,0.0001208,2]
[356655591,1742923635198,-7882.01,0.0001208,2]
[356655592,1742923635219,-1341.22,0.0001208,2]
[356655593,1742923635240,-500.0,0.0001208,2]
[356655594,1742923635262,-1079.31,0.0001208,2]
[356655595,1742923635283,-4976.09,0.0001208,2]
[356655596,1742923635306,-500.0,0.0001208,2]
[356655597,1742923635328,-500.0,0.0001208,2]
[356655598,1742923635349,-500.0,0.0001208,2]
[356655599,1742923635370,-230.53911157,0.0001208,2]
[356655600,1742923635391,-500.0,0.00012081,2]
[356655601,1742923635412,-500.0,0.00012081,2]
[356655602,1742923635433,-500.0,0.00012081,2]
[356655603,1742923635456,-500.0,0.00012081,2]
[356655604,1742923635478,-500.0,0.00012081,2]
[356655605,1742923635499,-500.0,0.00012081,2]
[356655606,1742923635520,-500.0,0.00012081,2]
[356655607,1742923635542,-641.67,0.00012081,2]
[356655608,1742923635565,-500.0,0.00012081,2]
[356655609,1742923635590,-500.0,0.00012081,2]
[356655610,1742923635611,-500.0,0.00012081,2]
[356655611,1742923635633,-269.62928755,0.00012081,2]
[356655612,1742923635654,-709.81,0.00012081,2]
[356655613,1742923635674,-628.37,0.00012081,2]
[356655614,1742923635695,-500.0,0.00012081,2]
[356655615,1742923635716,-500.0,0.00012081,2]
[356655616,1742923635736,-500.0,0.00012081,2]
[356655617,1742923635757,-611.44882325,0.00012081,2]
[356655618,1742923635778,-1008.23,0.00012081,2]
[356655619,1742923635798,-500.0,0.00012081,2]
[356655620,1742923635819,-500.0,0.00012081,2]
[356655621,1742923635841,-949.01,0.00012081,2]
[356655622,1742923635862,-500.0,0.00012081,2]
[356655623,1742923635883,-500.0,0.00012081,2]
[356655624,1742923635905,-580.56,0.00012081,2]
[356655625,1742923635926,-500.0,0.00012081,2]
[356655626,1742923635947,-1454.83,0.00012081,2]
[356655627,1742923635969,-3061.86,0.00012081,2]
[356655628,1742923635991,-4666.49,0.00012081,2]
[356655629,1742923636014,-500.0,0.00012081,2]
[356655630,1742923636039,-1237.98,0.00012081,2]
[356655631,1742923636062,-500.0,0.00012081,2]
[356655632,1742923636085,-1486.36,0.00012081,2]
[356655633,1742923636107,-500.0,0.00012081,2]
[356655634,1742923636134,-500.0,0.00012081,2]
[356655635,1742923636156,-500.0,0.00012081,2]
[356655636,1742923636179,-500.0,0.00012081,2]
[356655637,1742923636201,-500.0,0.00012081,2]